Workbook

Sheet Roeiers (hidden)
A1: A-B | B1: C-D | C1: E-F | D1: G-H | E1: I-J | F1: K-L | G1: M | H1: N-O-P-Q | I1: R | J1: S-T-U | K1: V-W-X-Y-Z
A2: Aafke | B2: Cyriel | C2: Eline | D2: Gerard | E2: Jaap | F2: Khadija | G2: Maaike | H2: Nina | I2: Raul | J2: Samantha | K2: Vedi
A3: Anke | B3: Daniël | C3: Emma | D3: Hans | E3: Jan | F3: Kees | G3: Maarten | H3: Ole | I3: Ria | J3: Sarah | K3: Wesley
A4: Anne | B4: David | C4: Eppo | D4: Hans D | E4: Janine | F4: Koos | G4: Maarten Z | H4: Paul | I4: Rik | J4: Siep | K4: Wijnand
A5: Anne Dirk | B5: David B | C5: Eric | D5: Hellen | E5: Janna | F5: Lana | G5: Maartje | H5: Peter | I5: Robert | J5: Susan | K5: Wilbert
A6: Annelie | B6: Dirk Jan | C6: Ernst | D6: Hendrien | E6: Jelle | F6: Leon | G6: Marianne | H6: Pieter | I6: Robert N | J6: Susan K | K6: Wilbert K
A7: Annemarie | B7: Dorien | C7: Ernstjan | D7: Herman | E7: Johan | F7: Liesbeth | G7: Mario | H7: Puck | I7: Ronald K | J7: Tijs | K7: Willemijn
A8: Antoinette | B8: Cancel LotT | C8: Febe | D8: Hubert | E8: John | G8: Mario D | I8: Rutger | J8: Ton
A9: Arienne | B9: Cancel Liefde | C9: Floris | D9: Hugo | E9: Jolande | G9: Marjolijn | J9: Ton K
A10: Arjan | C10: Freek | D10: Gert Jan V RR | E10: Jonas | G10: Mark | J10: Ton P
A11: Arthur | D11: Harry RR | E11: Joram | G11: Mark B | J11: Totaal
A12: Audrey | E12: Judy | G12: Mark K
A13: Benjamin | G13: Martin
A14: Bert | G14: Martin B
G15: Mathilda
G16: Merlijn
G17: Michael
G18: Michel
G19: Michiel
G20: Mireille
G21: Monique

Sheet Betalingen
C1: Begroting per roeier per wedstrijd | D1: 15 | J1: datum | K1: 2024-04-06 | L1: 2024-04-06 | M1: 2024-04-13 | N1: 2024-04-13 | O1: 2024-04-20 | P1: 2024-04-20 | Q1: 2024-04-27 | R1: 2024-05-10 | S1: 2024-05-11 | T1: 2024-05-25 | U1: 2024-06-08 | V1: 2024-06-08 | W1: 2024-06-15 | X1: 2024-06-22 | Y1: 2024-07-06 | Z1: 2024-08-24 | AA1: 2024-07-13 | AB1: 2024-07-20 | AC1: 2024-09-07 | AD1: 2024-09-14 | AE1: 2024-09-14 | AF1: 2024-09-21 | AG1: 2024-09-21 | AH1: 2024-09-28 | AI1: 2024-10-12 | AJ1: 2024-10-26 | AK1: 2023-11-02 | AL1: 3-11-2024 | AM1: 2024-04-06 | AN1: 2024-04-06 | AO1: 2024-04-13 | AP1: 2024-04-13 | AQ1: 2024-04-20 | AR1: 2024-04-20 | AS1: 2024-05-10 | AT1: 2024-05-25 | AU1: 2024-06-08 | AV1: 2024-06-08 | AW1: 2024-06-25 | AX1: 2024-06-22 | AY1: 2024-07-06 | AZ1: 2024-07-13 | BA1: 2024-07-20 | BB1: 2024-09-07 | BC1: 2024-09-14 | BD1: 2024-09-14 | BE1: 2024-09-21 | BF1: 2024-09-21 | BG1: 2024-09-28 | BH1: 2024-10-12 | BI1: 2024-10-26 | BJ1: 2023-11-02 | BK1: 3-11-2024 | BL1: 2024-06-08 | BM1: 2024-08-24 | BN1: 2024-07-06
J2: Wedstrijdgeld totaal | K2: 115 | L2: 115 | Q2: 65 | R2: 110 | V2: 110 | Z2: 65 | AC2: 95 | AD2: 105 | AG2: 90 | AI2: 137 | AK2: 123 | AP2: 70 | AQ2: 70 | AV2: 110 | BB2: 95 | BC2: 105 | BE2: 55 | BG2: 80 | BJ2: 106 | BL2: 110 | BM2: 20
A3: Wedstrijdgeld storten op bankrekening: | J3: Aantal deelnemers | K3: 8.5 | L3: 8.5 | Q3: 9 | R3: 9 | V3: 6 | Y3: Cancel | Z3: 9 | AB3: Cancel | AC3: 9 | AD3: 9 | AG3: 9 | AI3: 8 | AJ3: 0 | AK3: 10 | AL3: 10 | AP3: 7 | AQ3: 6 | AS3: Cancel | AV3: 6 | BB3: 7 | BC3: 6 | BE3: 6 | BG3: 5 | BI3: 1 | BJ3: 7 | BK3: 7 | BL3: 7 | BM3: 5 | BN3: Cancel
A4: NL97 RABO 0149 0372 60 t.n.v. TIOG | J4: Wedstrijdgeld per persoon | K4: =IF(K3="CANCEL","n/a",IF(K3>0,ROUNDUP(K2/K3,2),"n/a")) -> 13.53 | L4: =IF(L3="CANCEL","n/a",IF(L3>0,ROUNDUP(L2/L3,2),"n/a")) -> 13.53 | M4: n/a | N4: n/a | O4: n/a | P4: n/a | Q4: 7.23 | R4: 12.23 | S4: n/a | T4: n/a | U4: n/a | V4: 18.34 | W4: n/a | X4: n/a | Y4: n/a | Z4: =IF(Z3="CANCEL","n/a",IF(Z3>0,ROUNDUP(Z2/Z3,2),"n/a")) -> 7.23 | AA4: n/a | AB4: n/a | AC4: 10.56 | AD4: 11.67 | AE4: n/a | AF4: n/a | AG4: 10 | AH4: n/a | AI4: 17.13 | AJ4: n/a | AK4: 12.3 | AL4: 0 | AM4: n/a | AN4: n/a | AO4: n/a | AP4: 10 | AQ4: 11.67 | AR4: n/a | AS4: n/a | AT4: n/a | AU4: n/a | AV4: 18.34 | AW4: n/a | AX4: n/a | AY4: n/a | AZ4: n/a | BA4: n/a | BB4: 13.58 | BC4: 17.5 | BD4: n/a | BE4: 9.17 | BF4: n/a | BG4: 16 | BH4: n/a | BI4: 0 | BJ4: 15.15 | BK4: 0 | BL4: 15.72 | BM4: 4 | BN4: n/a
H5: Totaal betalings-achterstand: | I5: Saldo: | J5: Totaal gebruikt | K5: Vechten op de Vecht, Weesp LotT HT | L5: Vechten op de Vecht, Weesp LotT | M5: Utrechtse Grachtenrace RondDom LotT | N5: Harlinger Kampioenschap, Harlingen LotT | O5: Slag om de Zaan, Zaandam LotT | P5: Roeisloepenrace Grou LotT | Q5: IFK sloeproeien, Lemmer LotT | R5: HT Race, Harlingen Terschelling LotT | S5: Memorial Regatta LotT | T5: Vuurtorenrace, Urk LotT | U5: Haal-op-gelijk-in-Harderwijk, Harderwijk LotT | V5: Kaagrace, Warmond Leuve | W5: Volvo Zwolse Grachtenrace, Zwolle LotT | X5: Kameleonrace, Terherne LotT | Y5: Roeiregatta Haringvliet, Hellevoetsluis LotT | Z5: Slag om Gent, LotT | AA5: Respec op de Lek, Culemborg LotT | AB5: Mosselrace, Bruinisse LotT | AC5: Maasrace, Rotterdam LotT | AD5: Slag om Willemstad LotT | AE5: ZwarteWaterRace, Zwartsluis LotT | AF5: Slag om Makkum LotT | AG5: Veerse Meerrace, Kortgene LotT | AH5: Langweerder Sloepenrace, Langweer LotT | AI5: Grachtenrace, Amsterdam LotT | AJ5: Liwwadster Rondje, Leeuwarden LotT | AK5: Muiden-Pampus-Muiden LotT Za | AL5: Muiden-Pampus-Muiden LotT Zo | AM5: Vechten op de Vecht, Weesp Leuve D | AN5: Vechten op de Vecht, Weesp Leuve H | AO5: Utrechtse Grachtenrace RondDom Leuve | AP5: Harlinger Kampioenschap, Harlingen Leuve | AQ5: Slag om de Zaan, Zaandam Leuve | AR5: Roeisloepenrace Grou Leuve | AS5: Memorial Regatta Leuve | AT5: Vuurtorenrace, Urk Leuve | AU5: Haal-op-gelijk-in-Harderwijk, Harderwijk Leuve | AV5: Kaagrace, Warmond (G)Leuve | AW5: Volvo Zwolse Grachtenrace, Zwolle Leuve | AX5: Kameleonrace, Terherne Leuve | AY5: Roeiregatta Haringvliet, Hellevoetsluis Leuve | AZ5: Respec op de Lek, Culemborg Leuve | BA5: Mosselrace, Bruinisse Leuve | BB5: Maasrace, Rotterdam Leuve | BC5: Slag om Willemstad Leuve | BD5: ZwarteWaterRace, Zwartsluis Leuve | BE5: Slag om Makkum Leuve | BF5: Veerse Meerrace, Kortgene Leuve | BG5: Langweerder Sloepenrace, Langweer Leuve | BH5: Grachtenrace, Amsterdam Leuve | BI5: Liwwadster Rondje, Leeuwarden Leuve | BJ5: Muiden-Pampus-Muiden Leuve Za | BK5: Muiden-Pampus-Muiden Leuve Zo | BL5: Kaagrace, Warmond Tropicana's | BM5: Slag om Gent, Liefde | BN5: Roeiregatta Haringvliet, Hellevoetsluis Heerenliefde
A6: Wedstrijdroeiers | B6: Tegoed 2023 | C6: Gestort 2024 | H6: =SUMIF(I7:I88,"<0,0") -> 0 | I6: =SUM(I7:I170) -> 647.35 | J6: totaal verdeeld -> | K6: =SUM(K7:K541) -> 115.005 | L6: 115.005 | M6: 0 | N6: 0 | O6: 0 | P6: 0 | Q6: 65.07 | R6: 110.07 | S6: 0 | T6: 0 | U6: 0 | V6: 110.04 | W6: 0 | X6: 0 | Y6: 0 | Z6: 65.07 | AA6: 0 | AB6: 0 | AC6: 95.04 | AD6: 105.03 | AE6: 0 | AF6: 0 | AG6: 90 | AH6: 0 | AI6: 137.04 | AJ6: 0 | AK6: 116.85 | AL6: 6.15 | AM6: 0 | AN6: 0 | AO6: 0 | AP6: 70 | AQ6: 70.02 | AR6: 0 | AS6: 0 | AT6: 0 | AU6: 0 | AV6: 110.04 | AW6: 0 | AX6: 0 | AY6: 0 | AZ6: 0 | BA6: 0 | BB6: 95.06 | BC6: 105 | BD6: 0 | BE6: =SUM(BE7:BE541) -> 55.02 | BF6: 0 | BG6: 80 | BH6: 0 | BI6: 0 | BJ6: 106.05 | BK6: 0 | BL6: 110.04 | BM6: 20 | BN6: 0
A7: Aafke | B7: 18.83 | C7: 200 | I7: =SUM(B7:H7)-J7 -> 74.43 | J7: =SUM(K7:DL7) -> 144.4 | K7: =$K$4 -> 13.53 | Q7: =$Q$4 -> 7.23 | R7: =$R$4 -> 12.23 | Y7: =$Y$4 -> n/a | AP7: =$AP$4 -> 10 | AQ7: =$AQ$4 -> 11.67 | AV7: =$AV$4 -> 18.34 | BB7: =$BB$4 -> 13.58 | BC7: =$BC$4 -> 17.5 | BE7: =$BE$4 -> 9.17 | BG7: =$BG$4 -> 16 | BJ7: =$BJ$4 -> 15.15 | BK7: =$BK$4 -> 0
A8: Anita | B8: 0 | I8: 0 | J8: 0
A9: Anke | B9: 0 | C9: 3.34 | D9: 0.66 | I9: =SUM(B9:H9)-J9 -> 0 | J9: 4 | BM9: =$BM$4 -> 4
A10: Anne | B10: 0 | I10: 0 | J10: 0
A11: Anne Dirk | B11: 7.73 | C11: 60 | I11: 15.42 | J11: 52.31 | V11: =$V$4 -> 18.34 | AB11: =$AB$4 -> n/a | AD11: =$AD$4 -> 11.67 | AG11: =$AG$4 -> 10 | AK11: =$AK$4 -> 12.3 | AL11: =$AL$4 -> 0 | AS11: =$AS$4 -> n/a
A12: Annemarie | B12: 18.44 | C12: 200 | I12: 107.54 | J12: 110.9 | K12: =$K$4 -> 13.53 | Q12: =$Q$4 -> 7.23 | R12: =$R$4 -> 12.23 | Y12: =$Y$4 -> n/a | AP12: =$AP$4 -> 10 | AQ12: =$AQ$4 -> 11.67 | AV12: =$AV$4 -> 18.34 | BB12: =$BB$4 -> 13.58 | BE12: =$BE$4 -> 9.17 | BJ12: =$BJ$4 -> 15.15 | BK12: =$BK$4 -> 0
A13: Arienne | B13: 47.36 | C13: 39.12 | I13: =SUM(B13:H13)-J13 -> 0 | J13: 86.48 | K13: =$K$4 -> 13.53 | Q13: =$Q$4 -> 7.23 | R13: =$R$4 -> 12.23 | AQ13: =$AQ$4 -> 11.67 | BC13: =$BC$4 -> 17.5 | BE13: =$BE$4 -> 9.17 | BJ13: =$BJ$4 -> 15.15 | BK13: =$BK$4 -> 0
A14: Audrey | B14: 10.62 | C14: 1.05 | I14: =SUM(B14:H14)-J14 -> 0 | J14: 11.67 | AD14: =$AD$4 -> 11.67
A15: Benjamin | B15: 0 | C15: 75 | D15: 10 | E15: 15.76 | I15: =SUM(B15:H15)-J15 -> 0 | J15: 100.76 | L15: =$L$4 -> 13.53 | V15: =$V$4 -> 18.34 | Z15: =$Z$4 -> 7.23 | AB15: =$AB$4 -> n/a | AC15: =$AC$4 -> 10.56 | AD15: =$AD$4 -> 11.67 | AG15: =$AG$4 -> 10 | AI15: =$AI$4 -> 17.13 | AK15: =$AK$4 -> 12.3 | AL15: =$AL$4 -> 0
A16: Cyriel | B16: 0 | I16: =SUM(B16:H16)-J16 -> 0 | J16: 0
A17: Daniël | B17: 0 | C17: 50 | I17: 19.34 | J17: 30.66 | L17: =$L$4 -> 13.53 | AI17: =$AI$4 -> 17.13
A18: Danique | B18: 0 | C18: 15.15 | I18: =SUM(B18:H18)-J18 -> 0 | J18: =SUM(K18:DL18) -> 15.15 | BJ18: 15.15
A19: David | B19: 0 | I19: 0 | J19: 0
A20: David B | B20: 0 | I20: =SUM(B20:H20)-J20 -> 0 | J20: 0
A21: Dick | B21: 0 | C21: 10 | I21: =SUM(B21:H21)-J21 -> 2.77 | J21: 7.23 | Z21: =$Z$4 -> 7.23
A22: Dirk Jan | B22: 0 | I22: 0 | J22: 0
A23: Dorien | B23: 0 | I23: =SUM(B23:H23)-J23 -> 0 | J23: 0
A24: Eline | B24: 27.2 | I24: 6.64 | J24: 20.56 | AB24: =$AB$4 -> n/a | AC24: =$AC$4 -> 10.56 | AG24: =$AG$4 -> 10
A25: Eppo | B25: 12.08 | I25: 12.08 | J25: 0
A26: Eric | B26: 0 | C26: 13.53 | I26: 0 | J26: 13.53 | L26: =$L$4 -> 13.53
A27: Ernst | B27: 15 | C27: 10 | I27: 6.1 | J27: 18.9 | Z27: =$Z$4 -> 7.23 | AD27: =$AD$4 -> 11.67
A28: Ernstjan | B28: 12.62 | I28: 12.62 | J28: 0
A29: Febe | B29: 0 | C29: 15.72 | I29: =SUM(B29:H29)-J29 -> 0 | J29: 15.72 | BL29: =$BL$4 -> 15.72
A30: Floris | B30: 0 | C30: 13.53 | D30: 10 | E30: 7.79 | I30: 0 | J30: 31.32 | L30: =$L$4 -> 13.53 | Z30: =$Z$4 -> 7.23 | AC30: =$AC$4 -> 10.56
A31: Gerard | B31: 0.38 | I31: 0.38 | J31: 0
A32: Hans | B32: 0 | I32: 0 | J32: 0
A33: Hans D | B33: 0 | C33: 6.15 | I33: 0 | J33: 6.15 | AL33: 6.15
A34: Hellen | B34: 0 | C34: 100 | D34: 37.21 | I34: 0 | J34: 137.21 | K34: =$K$4 -> 13.53 | Q34: =$Q$4 -> 7.23 | R34: =$R$4 -> 12.23 | AI34: =$AI$4 -> 17.13 | AP34: =$AP$4 -> 10 | AQ34: =$AQ$4 -> 11.67 | AV34: =$AV$4 -> 18.34 | BB34: =$BB$4 -> 13.58 | BC34: =$BC$4 -> 17.5 | BG34: =$BG$4 -> 16
A35: Hendrien | B35: 0 | C35: 25 | I35: 5.28 | J35: 19.72 | BL35: =$BL$4 -> 15.72 | BM35: =$BM$4 -> 4
A36: Herman | B36: 5.64 | C36: 30 | I36: 4.98 | J36: 30.66 | L36: =$L$4 -> 13.53 | AI36: =$AI$4 -> 17.13
A37: Hubert | B37: 0 | I37: =SUM(B37:H37)-J37 -> 0 | J37: 0
A38: Hugo | B38: 39.99 | C38: 10 | I38: 42.76 | J38: 7.23 | Z38: =$Z$4 -> 7.23
A39: Ilja | B39: 0 | I39: 0 | J39: 0
A40: Jan | B40: 0 | I40: 0 | J40: 0
A41: Janna | B41: 3.84 | C41: 50 | D41: 60 | E41: 60 | I41: 29.44 | J41: =SUM(K41:DL41) -> 144.4 | K41: =$K$4 -> 13.53 | Q41: =$Q$4 -> 7.23 | R41: =$R$4 -> 12.23 | AP41: =$AP$4 -> 10 | AQ41: =$AQ$4 -> 11.67 | AV41: =$AV$4 -> 18.34 | BB41: =$BB$4 -> 13.58 | BC41: =$BC$4 -> 17.5 | BE41: =$BE$4 -> 9.17 | BG41: =$BG$4 -> 16 | BJ41: =$BJ$4 -> 15.15 | BK41: =$BK$4 -> 0
A42: Jelle | B42: 0 | I42: 0 | J42: 0
A43: Johan | B43: 8.6 | C43: 3.7 | I43: 0 | J43: 12.3 | AK43: =$AK$4 -> 12.3 | AL43: =$AL$4 -> 0
A44: John | B44: 11.61 | C44: 40 | I44: =SUM(B44:H44)-J44 -> 12.71 | J44: 38.9 | V44: =$V$4 -> 18.34 | AB44: =$AB$4 -> n/a | AC44: =$AC$4 -> 10.56 | AG44: =$AG$4 -> 10 | AS44: =$AS$4 -> n/a
A45: Jolande | B45: 0 | C45: 100 | D45: 44.4 | I45: =SUM(B45:H45)-J45 -> 0 | J45: 144.4 | K45: =$K$4 -> 13.53 | Q45: =$Q$4 -> 7.23 | R45: =$R$4 -> 12.23 | Y45: =$Y$4 -> n/a | AP45: =$AP$4 -> 10 | AQ45: =$AQ$4 -> 11.67 | AV45: =$AV$4 -> 18.34 | BB45: =$BB$4 -> 13.58 | BC45: =$BC$4 -> 17.5 | BE45: =$BE$4 -> 9.17 | BG45: =$BG$4 -> 16 | BJ45: =$BJ$4 -> 15.15 | BK45: =$BK$4 -> 0
A46: Judy | B46: 0 | C46: 25 | I46: =SUM(B46:H46)-J46 -> 5.28 | J46: 19.72 | BL46: =$BL$4 -> 15.72 | BM46: =$BM$4 -> 4
A47: Joram | B47: 0.22 | I47: 0.22 | J47: 0
A48: Khadija | B48: 0 | C48: 11.67 | I48: =SUM(B48:H48)-J48 -> 0 | J48: 11.67 | AD48: =$AD$4 -> 11.67
A49: Koos | B49: 0 | I49: 0 | J49: 0
A50: Leon | B50: 9.47 | C50: 50 | I50: 33.64 | J50: 25.83 | L50: =$L$4 -> 13.53 | Y50: =$Y$4 -> n/a | AK50: =$AK$4 -> 12.3 | AL50: =$AL$4 -> 0
A51: Maaike | B51: 23.84 | C51: 100 | D51: 8.89 | I51: =SUM(B51:H51)-J51 -> 0 | J51: 132.73 | K51: =$K$4 -> 13.53 | Q51: =$Q$4 -> 7.23 | R51: =$R$4 -> 12.23 | AP51: =$AP$4 -> 10 | AV51: =$AV$4 -> 18.34 | BB51: =$BB$4 -> 13.58 | BC51: =$BC$4 -> 17.5 | BE51: =$BE$4 -> 9.17 | BG51: =$BG$4 -> 16 | BJ51: =$BJ$4 -> 15.15 | BK51: =$BK$4 -> 0
A52: Maarten Z | B52: 5.66 | C52: 25 | I52: 17.13 | J52: 13.53 | L52: =$L$4 -> 13.53
A53: Marianne | B53: 0 | I53: 0 | J53: 0
A54: Mario | B54: 0 | C54: 15 | I54: =SUM(B54:H54)-J54 -> 3.33 | J54: 11.67 | AD54: =$AD$4 -> 11.67
A55: Mark | B55: 0 | I55: 0 | J55: 0
A56: Mark B | B56: 0 | C56: 10 | D56: 37.22 | I56: =SUM(B56:H56)-J56 -> 0 | J56: 47.22 | Y56: =$Y$4 -> n/a | Z56: =$Z$4 -> 7.23 | AB56: =$AB$4 -> n/a | AC56: =$AC$4 -> 10.56 | AI56: =$AI$4 -> 17.13 | AK56: =$AK$4 -> 12.3 | AL56: =$AL$4 -> 0
A57: Mark K | B57: 0 | C57: 10 | I57: =SUM(B57:H57)-J57 -> 0 | J57: 10 | AG57: =$AG$4 -> 10
A58: Martin | B58: 2.97 | I58: 2.97 | J58: 0
A59: Martin B | B59: 0 | C59: 50 | D59: 10 | E59: 18.53 | I59: =SUM(B59:H59)-J59 -> 0 | J59: 78.53 | L59: =$L$4 -> 13.53 | V59: =$V$4 -> 18.34 | Z59: =$Z$4 -> 7.23 | AB59: =$AB$4 -> n/a | AG59: =$AG$4 -> 10 | AI59: =$AI$4 -> 17.13 | AK59: =$AK$4 -> 12.3 | AL59: =$AL$4 -> 0
A60: Mathilda | B60: 0 | C60: 32.86 | I60: =SUM(B60:H60)-J60 -> 0 | J60: 32.86 | AC60: =$AC$4 -> 10.56 | AG60: =$AG$4 -> 10 | AK60: =$AK$4 -> 12.3 | AL60: =$AL$4 -> 0
A61: Merlijn | B61: 0 | C61: 50 | I61: =SUM(B61:H61)-J61 -> 30.28 | J61: 19.72 | BL61: =$BL$4 -> 15.72 | BM61: =$BM$4 -> 4
A62: Michel | B62: 0 | C62: 38.38 | I62: =SUM(B62:H62)-J62 -> 6.15 | J62: 32.23 | Y62: =$Y$4 -> n/a | AC62: =$AC$4 -> 10.56 | AD62: =$AD$4 -> 11.67 | AG62: =$AG$4 -> 10 | AS62: =$AS$4 -> n/a
A63: Michiel | B63: 0 | C63: 6.15 | I63: =SUM(B63:H63)-J63 -> 0 | J63: 6.15 | AK63: 6.15
A64: Nienke | B64: 0 | I64: 0 | J64: 0
A65: Olivier | B65: 0 | I65: =SUM(B65:H65)-J65 -> 0 | J65: 0
A66: Paul | B66: 0 | C66: 15.72 | D66: 2.62 | E66: 10.56 | I66: =SUM(B66:H66)-J66 -> 0 | J66: 28.9 | V66: =$V$4 -> 18.34 | AB66: =$AB$4 -> n/a | AC66: =$AC$4 -> 10.56
A67: Peter | B67: 0 | I67: 0 | J67: 0
A68: Petra | B68: 0 | I68: =SUM(B68:H68)-J68 -> 0 | J68: 0
A69: Pieter | B69: 9.25 | I69: 9.25 | J69: 0
A70: Ria | B70: 0 | C70: 25 | I70: =SUM(B70:H70)-J70 -> 5.28 | J70: 19.72 | BL70: =$BL$4 -> 15.72 | BM70: =$BM$4 -> 4
A71: Rieneke | B71: 0.53 | C71: 6.7 | I71: 0 | J71: 7.23 | Z71: =$Z$4 -> 7.23
A72: Rik | B72: 1.33 | C72: 25 | D72: 10 | E72: 36.09 | I72: 0 | J72: 72.42 | K72: =$K$4/2 -> 6.765 | L72: =$K$4/2 -> 6.765 | Q72: =$Q$4 -> 7.23 | R72: =$R$4 -> 12.23 | AI72: =$AI$4 -> 17.13 | AK72: =$AK$4 -> 12.3 | AL72: =$AL$4 -> 0 | AP72: =$AP$4 -> 10
A73: Robert | B73: 11.41 | I73: 11.41 | J73: =SUM(K73:DL73) -> 0
A74: Robert N | B74: 15 | I74: 15 | J74: 0
A75: Ronald | B75: 0 | I75: 0 | J75: 0
A76: Samantha | B76: 0 | C76: 15.72 | I76: =SUM(B76:H76)-J76 -> 0 | J76: 15.72 | BL76: =$BL$4 -> 15.72
A77: Sarah | B77: 2.99 | C77: 10 | I77: 5.76 | J77: 7.23 | Y77: =$Y$4 -> n/a | Z77: =$Z$4 -> 7.23
A78: Siep | B78: 104.22 | I78: 104.22 | J78: 0
A79: Susan | B79: 0 | C79: 15.72 | I79: =SUM(B79:H79)-J79 -> 0 | J79: 15.72 | BL79: =$BL$4 -> 15.72
A80: Thom | B80: 0 | I80: =SUM(B80:H80)-J80 -> 0 | J80: 0
A81: Tijs | B81: 0 | I81: 0 | J81: 0
A82: Ton | B82: 0 | I82: 0 | J82: 0
A83: Ton K | B83: 15.5 | I83: =SUM(B83:H83)-J83 -> 15.5 | J83: 0
A84: Ton P | B84: 0 | C84: 51.1 | I84: =SUM(B84:H84)-J84 -> 0 | J84: 51.1 | Y84: =$Y$4 -> n/a | AB84: =$AB$4 -> n/a | AD84: =$AD$4 -> 11.67 | AG84: 10 | AI84: =$AI$4 -> 17.13 | AK84: =$AK$4 -> 12.3 | AL84: =$AL$4 -> 0
A85: Wijnand | B85: 0 | C85: 10.56 | I85: =SUM(B85:H85)-J85 -> 0 | J85: 10.56 | Y85: =$Y$4 -> n/a | AB85: =$AB$4 -> n/a | AC85: =$AC$4 -> 10.56
A86: Wilbert | B86: 6.02 | I86: 6.02 | J86: 0
A87: Wilbert K | B87: 0 | C87: 50 | I87: =SUM(B87:H87)-J87 -> 19.99 | J87: =SUM(K87:DL87) -> 30.01 | V87: =$V$4 -> 18.34 | AD87: =$AD$4 -> 11.67
A88: Willemijn | B88: 0 | C88: 50 | I88: =SUM(B88:H88)-J88 -> 3.43 | J88: =SUM(K88:DL88) -> 46.57 | K88: =$K$4 -> 13.53 | Q88: =$Q$4 -> 7.23 | R88: =$R$4 -> 12.23 | BB88: =$BB$4 -> 13.58
